[Event "Late-Titled-Tuesday-Blitz-September-05-2023"]
[Site "Chess.com"]
[Date "2023.09.05"]
[Round "9"]
[White "komogro"]
[Black "alexrustemov"]
[Result "0-1"]
[WhiteElo "2516"]
[BlackElo "2853"]
[TimeControl "180+1"]
[EndTime "15:45:40 PDT"]
[Termination "alexrustemov won on time"]

1. Nf3 {[%clk 0:03:00]} 1... d5 {[%clk 0:02:58.3]} 2. g3 {[%clk 0:02:59.8]} 2...
c6 {[%clk 0:02:56.3]} 3. Bg2 {[%clk 0:03:00.2]} 3... Bf5 {[%clk 0:02:56.4]} 4.
c4 {[%clk 0:02:59.6]} 4... dxc4 {[%clk 0:02:44.3]} 5. O-O {[%clk 0:02:52.9]}
5... Nd7 {[%clk 0:02:42.5]} 6. Na3 {[%clk 0:02:49.9]} 6... Nb6 {[%clk
0:02:41.1]} 7. b3 {[%clk 0:02:42.4]} 7... cxb3 {[%clk 0:02:40.5]} 8. axb3 {[%clk
0:02:43.1]} 8... Nf6 {[%clk 0:02:39.3]} 9. Bb2 {[%clk 0:02:42.7]} 9... e6 {[%clk
0:02:39.6]} 10. d3 {[%clk 0:02:42.8]} 10... Be7 {[%clk 0:02:39.5]} 11. Nc4
{[%clk 0:02:36.5]} 11... O-O {[%clk 0:02:30.7]} 12. Na5 {[%clk 0:02:27.5]} 12...
Qc7 {[%clk 0:02:26]} 13. Be5 {[%clk 0:02:26.2]} 13... Qd7 {[%clk 0:02:25.9]} 14.
Qc2 {[%clk 0:02:19.3]} 14... Nfd5 {[%clk 0:02:20.5]} 15. Nd4 {[%clk 0:02:11.1]}
15... Bg6 {[%clk 0:02:17.2]} 16. Nf3 {[%clk 0:01:54.8]} 16... f6 {[%clk
0:02:12.3]} 17. Bb2 {[%clk 0:01:51.8]} 17... e5 {[%clk 0:02:12.6]} 18. Nd2
{[%clk 0:01:51]} 18... Nb4 {[%clk 0:02:07.5]} 19. Qc1 {[%clk 0:01:49.1]} 19...
N6d5 {[%clk 0:02:07.8]} 20. Ne4 {[%clk 0:01:41.2]} 20... b6 {[%clk 0:02:06.7]}
21. Nc4 {[%clk 0:01:41.4]} 21... c5 {[%clk 0:02:00.4]} 22. h4 {[%clk 0:01:40.1]}
22... a5 {[%clk 0:01:51.1]} 23. Kh2 {[%clk 0:01:35.5]} 23... Rab8 {[%clk
0:01:49.8]} 24. Bh3 {[%clk 0:01:31.3]} 24... Bf5 {[%clk 0:01:46.1]} 25. Bg2
{[%clk 0:01:31.2]} 25... Rfd8 {[%clk 0:01:44.9]} 26. Ned2 {[%clk 0:01:30.7]}
26... Be6 {[%clk 0:01:41.2]} 27. h5 {[%clk 0:01:25.5]} 27... h6 {[%clk
0:01:38.7]} 28. Bf3 {[%clk 0:01:24.9]} 28... Nc6 {[%clk 0:01:37.9]} 29. e3
{[%clk 0:01:20.5]} 29... Ndb4 {[%clk 0:01:37]} 30. Qb1 {[%clk 0:00:53.5]} 30...
Qxd3 {[%clk 0:01:36.3]} 31. Qxd3 {[%clk 0:00:51]} 31... Rxd3 {[%clk 0:01:36.5]}
32. Be4 {[%clk 0:00:49.8]} 32... Rd7 {[%clk 0:01:35.1]} 33. Rfd1 {[%clk
0:00:47]} 33... Rbd8 {[%clk 0:01:32.9]} 34. Bc3 {[%clk 0:00:45.1]} 34... Bg4
{[%clk 0:01:18.9]} 35. f3 {[%clk 0:00:43.7]} 35... Bxh5 {[%clk 0:01:18.2]} 36.
Nxb6 {[%clk 0:00:43]} 36... Rc7 {[%clk 0:01:15.1]} 37. Ndc4 {[%clk 0:00:40.6]}
37... Rxd1 {[%clk 0:01:12.8]} 38. Rxd1 {[%clk 0:00:41.5]} 38... Bf7 {[%clk
0:01:11.6]} 39. Ra1 {[%clk 0:00:16.1]} 39... Be6 {[%clk 0:01:01.4]} 40. g4
{[%clk 0:00:12.7]} 40... Kf7 {[%clk 0:01:00.7]} 41. Kg3 {[%clk 0:00:10.6]} 41...
Ra7 {[%clk 0:00:51.1]} 42. Kf2 {[%clk 0:00:06.9]} 42... Ra6 {[%clk 0:00:50.6]}
43. Na4 {[%clk 0:00:06.7]} 43... g6 {[%clk 0:00:49.6]} 44. Rd1 {[%clk
0:00:03.2]} 44... Ra7 {[%clk 0:00:46.4]} 45. Rh1 {[%clk 0:00:03.4]} 45... Kg7
{[%clk 0:00:46.1]} 46. Bb1 {[%clk 0:00:03.4]} 46... Rd7 {[%clk 0:00:45.4]} 47.
Ke2 {[%clk 0:00:03]} 47... Nd5 {[%clk 0:00:39.5]} 48. Nab6 {[%clk 0:00:02.9]}
48... Nxc3+ {[%clk 0:00:39.1]} 0-1

[Event "Late-Titled-Tuesday-Blitz-September-05-2023"]
[Site "Chess.com"]
[Date "2023.09.05"]
[Round "9"]
[White "Murad_Ibrahimli"]
[Black "KaydenTroffChess"]
[Result "0-1"]
[WhiteElo "2902"]
[BlackElo "2810"]
[TimeControl "180+1"]
[EndTime "15:45:41 PDT"]
[Termination "KaydenTroffChess won on time"]

1. d4 {[%clk 0:02:55.6]} 1... Nf6 {[%clk 0:02:58.3]} 2. c4 {[%clk 0:02:55.4]}
2... g6 {[%clk 0:02:58.3]} 3. Nc3 {[%clk 0:02:55]} 3... d5 {[%clk 0:02:58.5]} 4.
Nf3 {[%clk 0:02:53.9]} 4... Bg7 {[%clk 0:02:58]} 5. Qb3 {[%clk 0:02:53.3]} 5...
dxc4 {[%clk 0:02:55.5]} 6. Qxc4 {[%clk 0:02:54.2]} 6... O-O {[%clk 0:02:54.7]}
7. e4 {[%clk 0:02:54]} 7... a6 {[%clk 0:02:53.8]} 8. e5 {[%clk 0:02:50.3]} 8...
b5 {[%clk 0:02:51.1]} 9. Qb3 {[%clk 0:02:50.6]} 9... Nfd7 {[%clk 0:02:50.9]} 10.
e6 {[%clk 0:02:46.6]} 10... fxe6 {[%clk 0:02:46.7]} 11. Be3 {[%clk 0:02:46.5]}
11... Nf6 {[%clk 0:02:35]} 12. Be2 {[%clk 0:02:41.9]} 12... Nc6 {[%clk
0:02:32.2]} 13. O-O {[%clk 0:02:37.8]} 13... Rb8 {[%clk 0:02:22.5]} 14. Rac1
{[%clk 0:02:35.1]} 14... Qd6 {[%clk 0:02:18.8]} 15. g3 {[%clk 0:02:27.8]} 15...
Bb7 {[%clk 0:02:14.9]} 16. Rfd1 {[%clk 0:02:20.9]} 16... Nd5 {[%clk 0:02:13.1]}
17. Nxd5 {[%clk 0:02:15.7]} 17... exd5 {[%clk 0:01:56.9]} 18. a4 {[%clk
0:01:57.2]} 18... Na5 {[%clk 0:01:45.5]} 19. Qc3 {[%clk 0:01:48.3]} 19... Nc4
{[%clk 0:01:44.8]} 20. axb5 {[%clk 0:01:48.1]} 20... axb5 {[%clk 0:01:44.6]} 21.
b3 {[%clk 0:01:48]} 21... b4 {[%clk 0:01:31]} 22. Qd3 {[%clk 0:01:29.1]} 22...
Nb2 {[%clk 0:01:24.2]} 23. Qc2 {[%clk 0:01:27.1]} 23... Nxd1 {[%clk 0:01:24.1]}
24. Bxd1 {[%clk 0:01:27.8]} 24... Rbc8 {[%clk 0:01:18]} 25. h4 {[%clk
0:01:17.2]} 25... c5 {[%clk 0:01:01.1]} 26. dxc5 {[%clk 0:01:15.3]} 26... Qd7
{[%clk 0:01:00.6]} 27. Ng5 {[%clk 0:00:49.7]} 27... d4 {[%clk 0:00:56]} 28. Bd2
{[%clk 0:00:50.2]} 28... Qd5 {[%clk 0:00:50.3]} 29. Qc4 {[%clk 0:00:34.2]} 29...
Qxc4 {[%clk 0:00:50.4]} 30. Rxc4 {[%clk 0:00:35.1]} 30... Bd5 {[%clk 0:00:50.5]}
31. Rxb4 {[%clk 0:00:33.9]} 31... Rxc5 {[%clk 0:00:49.2]} 32. Rb6 {[%clk
0:00:30.2]} 32... Ra8 {[%clk 0:00:45.9]} 33. Kh2 {[%clk 0:00:18.8]} 33... Rc6
{[%clk 0:00:32.3]} 34. Rb5 {[%clk 0:00:17]} 34... Rd6 {[%clk 0:00:28.4]} 35. Bg4
{[%clk 0:00:15.1]} 35... Bc6 {[%clk 0:00:24.6]} 36. Rb6 {[%clk 0:00:10.8]} 36...
Bd5 {[%clk 0:00:22.4]} 37. Rb5 {[%clk 0:00:09]} 37... Rad8 {[%clk 0:00:19]} 38.
Bb4 {[%clk 0:00:08.1]} 38... Rf6 {[%clk 0:00:13.8]} 39. f4 {[%clk 0:00:07.2]}
39... Bf8 {[%clk 0:00:13]} 40. Ba5 {[%clk 0:00:02.7]} 40... Bc6 {[%clk 0:00:12]}
41. Rc5 {[%clk 0:00:01.8]} 41... Rd5 {[%clk 0:00:12.1]} 0-1

[Event "Late-Titled-Tuesday-Blitz-September-05-2023"]
[Site "Chess.com"]
[Date "2023.09.05"]
[Round "9"]
[White "willyam13"]
[Black "azikom"]
[Result "1-0"]
[WhiteElo "2501"]
[BlackElo "2634"]
[TimeControl "180+1"]
[EndTime "15:45:43 PDT"]
[Termination "willyam13 won by resignation"]

1. e4 {[%clk 0:03:00.9]} 1... c5 {[%clk 0:02:59.9]} 2. Nf3 {[%clk 0:03:00.8]}
2... e6 {[%clk 0:02:59.9]} 3. d4 {[%clk 0:03:01.2]} 3... cxd4 {[%clk 0:02:59.4]}
4. Nxd4 {[%clk 0:03:01.9]} 4... a6 {[%clk 0:03:00]} 5. Bd3 {[%clk 0:03:01.8]}
5... Nc6 {[%clk 0:02:58]} 6. Nxc6 {[%clk 0:02:58.8]} 6... bxc6 {[%clk
0:02:58.9]} 7. c4 {[%clk 0:02:57.2]} 7... Nf6 {[%clk 0:02:57.5]} 8. Nc3 {[%clk
0:02:57.5]} 8... d5 {[%clk 0:02:57.8]} 9. Qe2 {[%clk 0:02:45.5]} 9... Bb7 {[%clk
0:02:49.6]} 10. O-O {[%clk 0:02:43.6]} 10... Be7 {[%clk 0:02:48.8]} 11. Bf4
{[%clk 0:02:30.8]} 11... O-O {[%clk 0:02:45.3]} 12. Rfd1 {[%clk 0:02:18.4]}
12... Qa5 {[%clk 0:02:30.6]} 13. e5 {[%clk 0:01:58.9]} 13... Nd7 {[%clk
0:02:28.8]} 14. Rac1 {[%clk 0:01:53]} 14... Rfc8 {[%clk 0:02:25.9]} 15. a3
{[%clk 0:01:51.3]} 15... Nf8 {[%clk 0:02:20.4]} 16. Bd2 {[%clk 0:01:44.7]} 16...
Qd8 {[%clk 0:02:09.6]} 17. b4 {[%clk 0:01:38.3]} 17... a5 {[%clk 0:02:08.4]} 18.
c5 {[%clk 0:01:37.4]} 18... Ng6 {[%clk 0:01:57.1]} 19. g3 {[%clk 0:01:25.3]}
19... Rcb8 {[%clk 0:01:54.1]} 20. Rb1 {[%clk 0:01:24.2]} 20... Qc8 {[%clk
0:01:49.9]} 21. Na4 {[%clk 0:01:06.4]} 21... Ra7 {[%clk 0:01:47.5]} 22. Nb6
{[%clk 0:01:06.1]} 22... Qd8 {[%clk 0:01:41.4]} 23. h4 {[%clk 0:01:00.1]} 23...
Nf8 {[%clk 0:01:40.1]} 24. h5 {[%clk 0:00:57.7]} 24... h6 {[%clk 0:01:39]} 25.
Qg4 {[%clk 0:00:53.7]} 25... Kh8 {[%clk 0:01:29.6]} 26. Qf3 {[%clk 0:00:51.7]}
26... Kg8 {[%clk 0:01:29.2]} 27. Rdc1 {[%clk 0:00:50.9]} 27... Ba6 {[%clk
0:01:26.7]} 28. Bxa6 {[%clk 0:00:36]} 28... Rxa6 {[%clk 0:01:27.6]} 29. bxa5
{[%clk 0:00:35.4]} 29... Ra7 {[%clk 0:01:13.9]} 30. Qd3 {[%clk 0:00:34.3]} 30...
Bg5 {[%clk 0:01:02.9]} 31. f4 {[%clk 0:00:32.2]} 31... Be7 {[%clk 0:01:02]} 32.
Rb3 {[%clk 0:00:32.5]} 32... Nd7 {[%clk 0:00:56.2]} 33. Nxd7 {[%clk 0:00:30]}
33... Rxb3 {[%clk 0:00:51.6]} 34. Qxb3 {[%clk 0:00:20.7]} 34... Qxd7 {[%clk
0:00:51.2]} 35. Qb8+ {[%clk 0:00:21]} 35... Kh7 {[%clk 0:00:50.9]} 36. Bb4
{[%clk 0:00:17.1]} 36... f6 {[%clk 0:00:41.9]} 37. exf6 {[%clk 0:00:16.2]} 37...
Bxf6 {[%clk 0:00:41.8]} 38. Re1 {[%clk 0:00:14.8]} 38... d4 {[%clk 0:00:39.2]}
39. Qd6 {[%clk 0:00:11.4]} 39... d3 {[%clk 0:00:32.6]} 40. Rxe6 {[%clk
0:00:09.5]} 40... Kg8 {[%clk 0:00:20.6]} 41. Qxd7 {[%clk 0:00:09.3]} 41... Rc7
{[%clk 0:00:20.3]} 42. Rd6 {[%clk 0:00:10.2]} 42... Rxd7 {[%clk 0:00:18.3]} 43.
Rxd7 {[%clk 0:00:11.1]} 1-0

[Event "Late-Titled-Tuesday-Blitz-September-05-2023"]
[Site "Chess.com"]
[Date "2023.09.05"]
[Round "9"]
[White "Eloist"]
[Black "rquery98"]
[Result "1-0"]
[WhiteElo "2480"]
[BlackElo "2650"]
[TimeControl "180+1"]
[EndTime "15:45:46 PDT"]
[Termination "Eloist won by checkmate"]

1. e4 {[%clk 0:02:56]} 1... e5 {[%clk 0:02:56.7]} 2. Bc4 {[%clk 0:02:55.1]} 2...
Nf6 {[%clk 0:02:56.3]} 3. d3 {[%clk 0:02:55.4]} 3... c6 {[%clk 0:02:52.2]} 4.
Nf3 {[%clk 0:02:55.4]} 4... d5 {[%clk 0:02:50.5]} 5. Bb3 {[%clk 0:02:55.5]} 5...
Bb4+ {[%clk 0:02:50.5]} 6. Bd2 {[%clk 0:02:55.1]} 6... Bxd2+ {[%clk 0:02:46.7]}
7. Nbxd2 {[%clk 0:02:56]} 7... Qd6 {[%clk 0:02:45.2]} 8. O-O {[%clk 0:02:55.3]}
8... O-O {[%clk 0:02:45.1]} 9. d4 {[%clk 0:02:50.8]} 9... Nxe4 {[%clk
0:02:22.4]} 10. Nxe4 {[%clk 0:02:47.1]} 10... dxe4 {[%clk 0:02:23.3]} 11. Nxe5
{[%clk 0:02:46.6]} 11... Nd7 {[%clk 0:02:19.6]} 12. Nc4 {[%clk 0:02:36.9]} 12...
Qg6 {[%clk 0:02:13.8]} 13. d5 {[%clk 0:02:29.2]} 13... cxd5 {[%clk 0:02:10.2]}
14. Qxd5 {[%clk 0:02:26.7]} 14... Nf6 {[%clk 0:02:10.8]} 15. Qd6 {[%clk
0:02:09.9]} 15... Bf5 {[%clk 0:01:47.4]} 16. Ne5 {[%clk 0:02:00.3]} 16... Qh5
{[%clk 0:01:47.5]} 17. Rad1 {[%clk 0:01:43.5]} 17... Rae8 {[%clk 0:01:04.4]} 18.
Rd4 {[%clk 0:01:23.9]} 18... Be6 {[%clk 0:00:57.4]} 19. f4 {[%clk 0:01:14.7]}
19... exf3 {[%clk 0:00:43.9]} 20. Nxf3 {[%clk 0:01:14.7]} 20... Bxb3 {[%clk
0:00:36.2]} 21. axb3 {[%clk 0:01:15.6]} 21... Re2 {[%clk 0:00:33.9]} 22. Rd2
{[%clk 0:00:57]} 22... Ne4 {[%clk 0:00:30.7]} 23. Qxf8+ {[%clk 0:00:47.8]} 23...
Kxf8 {[%clk 0:00:29.7]} 24. Rxe2 {[%clk 0:00:47.7]} 24... Qc5+ {[%clk
0:00:25.9]} 25. Kh1 {[%clk 0:00:46.8]} 25... Nf6 {[%clk 0:00:26.3]} 26. Ne5
{[%clk 0:00:41.9]} 26... Qd6 {[%clk 0:00:20]} 27. Nc4 {[%clk 0:00:34.7]} 27...
Qc7 {[%clk 0:00:17.6]} 28. Rd1 {[%clk 0:00:32.3]} 28... g6 {[%clk 0:00:14.5]}
29. Nd6 {[%clk 0:00:31.5]} 29... Qd7 {[%clk 0:00:08.9]} 30. c4 {[%clk
0:00:29.4]} 30... Ng4 {[%clk 0:00:05.9]} 31. Rf1 {[%clk 0:00:27.1]} 31... f5
{[%clk 0:00:05.8]} 32. c5 {[%clk 0:00:25.6]} 32... Kg7 {[%clk 0:00:04.7]} 33. h3
{[%clk 0:00:25.4]} 33... Nf6 {[%clk 0:00:04.5]} 34. Rfe1 {[%clk 0:00:24.7]}
34... Kh6 {[%clk 0:00:04.1]} 35. Re7 {[%clk 0:00:23.9]} 35... Qc6 {[%clk
0:00:04.7]} 36. Nf7+ {[%clk 0:00:23.7]} 36... Kh5 {[%clk 0:00:05.2]} 37. R7e6
{[%clk 0:00:21.9]} 37... Qxc5 {[%clk 0:00:03.3]} 38. Rxf6 {[%clk 0:00:21.8]}
38... Qf2 {[%clk 0:00:03.7]} 39. Rg1 {[%clk 0:00:21.9]} 39... Qxb2 {[%clk
0:00:03.8]} 40. Rd6 {[%clk 0:00:17.8]} 40... Qxb3 {[%clk 0:00:03.7]} 41. Ne5
{[%clk 0:00:17.7]} 41... Qe3 {[%clk 0:00:04.1]} 42. Nf3 {[%clk 0:00:14.9]} 42...
Qf4 {[%clk 0:00:04.1]} 43. Rd7 {[%clk 0:00:15]} 43... h6 {[%clk 0:00:04.6]} 44.
Rxb7 {[%clk 0:00:15]} 44... Qg3 {[%clk 0:00:03.8]} 45. Rh7 {[%clk 0:00:14.2]}
45... f4 {[%clk 0:00:03.8]} 46. Re1 {[%clk 0:00:13.6]} 46... a5 {[%clk
0:00:03.8]} 47. Re5+ {[%clk 0:00:13.2]} 47... g5 {[%clk 0:00:04.5]} 48. Re6
{[%clk 0:00:13.4]} 48... Qxg2+ {[%clk 0:00:02.9]} 49. Kxg2 {[%clk 0:00:12.5]}
49... g4 {[%clk 0:00:03.8]} 50. Rhxh6# {[%clk 0:00:11.6]} 1-0

[Event "Late-Titled-Tuesday-Blitz-September-05-2023"]
[Site "Chess.com"]
[Date "2023.09.05"]
[Round "9"]
[White "Durarbayli"]
[Black "jk13"]
[Result "0-1"]
[WhiteElo "2874"]
[BlackElo "2703"]
[TimeControl "180+1"]
[EndTime "15:45:51 PDT"]
[Termination "jk13 won on time"]

1. e4 {[%clk 0:03:00.9]} 1... e5 {[%clk 0:02:59.1]} 2. Nf3 {[%clk 0:03:01]} 2...
Nc6 {[%clk 0:02:58.3]} 3. Bb5 {[%clk 0:03:00.6]} 3... a6 {[%clk 0:02:57.6]} 4.
Ba4 {[%clk 0:02:58.5]} 4... Nf6 {[%clk 0:02:57.5]} 5. O-O {[%clk 0:02:59]} 5...
b5 {[%clk 0:02:58.2]} 6. Bb3 {[%clk 0:02:59.1]} 6... Bc5 {[%clk 0:02:59.1]} 7.
Nc3 {[%clk 0:02:55.6]} 7... d6 {[%clk 0:02:58.8]} 8. d3 {[%clk 0:02:51.9]} 8...
h6 {[%clk 0:02:59.3]} 9. Nd5 {[%clk 0:02:51.2]} 9... O-O {[%clk 0:02:58.9]} 10.
Nxf6+ {[%clk 0:02:49.5]} 10... Qxf6 {[%clk 0:02:58.6]} 11. Bd5 {[%clk
0:02:50.4]} 11... Bd7 {[%clk 0:02:59]} 12. c3 {[%clk 0:02:50.4]} 12... Bb6
{[%clk 0:02:58.1]} 13. Be3 {[%clk 0:02:46.3]} 13... Rab8 {[%clk 0:02:56.2]} 14.
Bxb6 {[%clk 0:02:43.5]} 14... Rxb6 {[%clk 0:02:56]} 15. b4 {[%clk 0:02:43.9]}
15... Ne7 {[%clk 0:02:55.8]} 16. Bb3 {[%clk 0:02:42.6]} 16... Bg4 {[%clk
0:02:55.2]} 17. Re1 {[%clk 0:02:42.6]} 17... Ng6 {[%clk 0:02:53.5]} 18. Re3
{[%clk 0:02:15]} 18... Nh4 {[%clk 0:02:52.1]} 19. Kf1 {[%clk 0:02:06.7]} 19...
Bxf3 {[%clk 0:02:23.7]} 20. gxf3 {[%clk 0:02:06]} 20... Qg5 {[%clk 0:02:09.7]}
21. Ke2 {[%clk 0:01:53.3]} 21... Ng2 {[%clk 0:02:09]} 22. Qh1 {[%clk 0:01:53.3]}
22... Nxe3 {[%clk 0:02:05.6]} 23. Rg1 {[%clk 0:01:49.4]} 23... Ng2 {[%clk
0:01:58.9]} 24. Rxg2 {[%clk 0:01:48.9]} 24... Qf6 {[%clk 0:01:59.4]} 25. Qg1
{[%clk 0:01:45.6]} 25... Kh7 {[%clk 0:01:57.9]} 26. h4 {[%clk 0:01:34.7]} 26...
c6 {[%clk 0:01:50.7]} 27. h5 {[%clk 0:01:27.9]} 27... Rb7 {[%clk 0:01:50.7]} 28.
Rg4 {[%clk 0:01:26.6]} 28... Rd7 {[%clk 0:01:49.9]} 29. Qg3 {[%clk 0:01:25.1]}
29... d5 {[%clk 0:01:47.2]} 30. Kf1 {[%clk 0:01:08.2]} 30... Rfd8 {[%clk
0:01:31.1]} 31. d4 {[%clk 0:01:00.2]} 31... dxe4 {[%clk 0:01:14.6]} 32. fxe4
{[%clk 0:00:49.5]} 32... Re8 {[%clk 0:01:02.5]} 33. dxe5 {[%clk 0:00:26.2]}
33... Qxe5 {[%clk 0:00:45.5]} 34. Qf3 {[%clk 0:00:26.8]} 34... f6 {[%clk
0:00:33.7]} 35. Rg3 {[%clk 0:00:12.5]} 35... Rd2 {[%clk 0:00:27.9]} 36. Qg4
{[%clk 0:00:11.1]} 36... Re7 {[%clk 0:00:23.1]} 37. Qc8 {[%clk 0:00:09.3]} 37...
Re8 {[%clk 0:00:13]} 38. Qg4 {[%clk 0:00:09.9]} 38... Qg5 {[%clk 0:00:10.2]} 39.
Qf3 {[%clk 0:00:10.2]} 39... Qh4 {[%clk 0:00:09]} 40. Bf7 {[%clk 0:00:05.7]}
40... Re5 {[%clk 0:00:07.7]} 41. Bg6+ {[%clk 0:00:04.5]} 41... Kh8 {[%clk
0:00:07.8]} 42. Bf5 {[%clk 0:00:05.2]} 42... Qh2 {[%clk 0:00:06.9]} 43. Ke1
{[%clk 0:00:02.5]} 43... Rxa2 {[%clk 0:00:06.1]} 44. Bh3 {[%clk 0:00:02.4]}
44... Rg5 {[%clk 0:00:04.3]} 45. Bg4 {[%clk 0:00:02.2]} 45... Rxg4 {[%clk
0:00:03.7]} 46. Rxg4 {[%clk 0:00:01.9]} 46... Qxh5 {[%clk 0:00:03.2]} 47. Qg3
{[%clk 0:00:01.3]} 47... Qe5 {[%clk 0:00:03.4]} 0-1

[Event "Late-Titled-Tuesday-Blitz-September-05-2023"]
[Site "Chess.com"]
[Date "2023.09.05"]
[Round "9"]
[White "jamengrand"]
[Black "DawidCzerw"]
[Result "1-0"]
[WhiteElo "2381"]
[BlackElo "2487"]
[TimeControl "180+1"]
[EndTime "15:45:53 PDT"]
[Termination "jamengrand won on time"]

1. e4 {[%clk 0:03:00.9]} 1... c5 {[%clk 0:02:58.5]} 2. Nf3 {[%clk 0:03:00.8]}
2... Nc6 {[%clk 0:02:57.7]} 3. d4 {[%clk 0:03:01.4]} 3... cxd4 {[%clk
0:02:58.6]} 4. Nxd4 {[%clk 0:03:01.8]} 4... g6 {[%clk 0:02:59.3]} 5. c4 {[%clk
0:03:01.8]} 5... Nf6 {[%clk 0:02:59.6]} 6. Nc3 {[%clk 0:03:00.5]} 6... d6 {[%clk
0:03:00.1]} 7. f3 {[%clk 0:02:59.5]} 7... Nxd4 {[%clk 0:03:00.1]} 8. Qxd4 {[%clk
0:02:59.2]} 8... Bg7 {[%clk 0:03:01]} 9. Be3 {[%clk 0:02:59.3]} 9... O-O {[%clk
0:03:01.1]} 10. Qd2 {[%clk 0:02:58]} 10... Be6 {[%clk 0:03:01.8]} 11. O-O-O
{[%clk 0:02:57.1]} 11... a6 {[%clk 0:02:59.3]} 12. Kb1 {[%clk 0:02:56.5]} 12...
b5 {[%clk 0:02:58.1]} 13. cxb5 {[%clk 0:02:46.6]} 13... axb5 {[%clk 0:02:59]}
14. Nd5 {[%clk 0:02:46.8]} 14... Bxd5 {[%clk 0:02:46.3]} 15. exd5 {[%clk
0:02:46.8]} 15... Nd7 {[%clk 0:02:37.8]} 16. Bxb5 {[%clk 0:02:35.6]} 16... Nc5
{[%clk 0:02:37.3]} 17. Bc6 {[%clk 0:02:25.5]} 17... Rb8 {[%clk 0:02:31.8]} 18.
Bd4 {[%clk 0:02:24.4]} 18... Bxd4 {[%clk 0:02:28.3]} 19. Qxd4 {[%clk 0:02:23.2]}
19... Qb6 {[%clk 0:02:29.2]} 20. Rhe1 {[%clk 0:02:13.8]} 20... e5 {[%clk
0:02:23.4]} 21. dxe6 {[%clk 0:01:47.4]} 21... Qxc6 {[%clk 0:02:16.9]} 22. exf7+
{[%clk 0:01:47.1]} 22... Rxf7 {[%clk 0:02:11.1]} 23. Qxd6 {[%clk 0:01:47]} 23...
Qb5 {[%clk 0:01:56]} 24. Rd2 {[%clk 0:01:37.1]} 24... Na4 {[%clk 0:01:48.4]} 25.
Qe5 {[%clk 0:01:29.2]} 25... Qb4 {[%clk 0:01:34.7]} 26. Ka1 {[%clk 0:01:09]}
26... Nc5 {[%clk 0:00:51.5]} 27. Qd4 {[%clk 0:00:47]} 27... Qa5 {[%clk
0:00:43.9]} 28. Kb1 {[%clk 0:00:44.1]} 28... Ra8 {[%clk 0:00:43.8]} 29. b4
{[%clk 0:00:39.6]} 29... Rb7 {[%clk 0:00:20]} 30. Rb2 {[%clk 0:00:23.3]} 30...
Qa4 {[%clk 0:00:01.3]} 31. Qxc5 {[%clk 0:00:15.1]} 31... Rab8 {[%clk 0:00:01.6]}
32. Qd5+ {[%clk 0:00:14.8]} 32... Kh8 {[%clk 0:00:01.8]} 33. Qd4+ {[%clk
0:00:13.5]} 33... Kg8 {[%clk 0:00:01.7]} 34. Re4 {[%clk 0:00:12.6]} 34... Qc6
{[%clk 0:00:01.5]} 35. Qc4+ {[%clk 0:00:11.9]} 35... Qxc4 {[%clk 0:00:01.9]} 36.
Rxc4 {[%clk 0:00:12.8]} 36... Re8 {[%clk 0:00:02.4]} 37. a4 {[%clk 0:00:12.7]}
37... Re1+ {[%clk 0:00:02.3]} 38. Rc1 {[%clk 0:00:12.6]} 38... Re3 {[%clk
0:00:02]} 39. Ka2 {[%clk 0:00:12.2]} 39... Kf7 {[%clk 0:00:02.5]} 40. b5 {[%clk
0:00:10.5]} 40... Ke6 {[%clk 0:00:03]} 41. Rcc2 {[%clk 0:00:09.6]} 41... Rd3
{[%clk 0:00:03.2]} 42. Rb3 {[%clk 0:00:09.7]} 42... Rd4 {[%clk 0:00:03.1]} 43.
Ka3 {[%clk 0:00:09.9]} 43... Ra7 {[%clk 0:00:03.4]} 44. Rb4 {[%clk 0:00:10.2]}
44... Rd3+ {[%clk 0:00:04]} 45. Kb2 {[%clk 0:00:10.9]} 45... Rd1 {[%clk
0:00:03.7]} 46. b6 {[%clk 0:00:10.8]} 46... Rb7 {[%clk 0:00:04]} 47. a5 {[%clk
0:00:11.3]} 47... Rd6 {[%clk 0:00:01.4]} 48. Rc3 {[%clk 0:00:09.8]} 1-0